bitfinex-derivatives/quotes_SOLF0:USTF0_20250919
["timestamp","ask_amount","ask_price","bid_price","bid_amount"]
[1758270004010,106.01,245.01,244.97,3.66693568]
[1758270004209,106.01,245.01,244.98,3.66693568]
[1758270004409,106.01,245.01,244.99,3.66693568]
[1758270004605,106.01,245.01,244.95,0.02693762]
[1758270004806,106.01,245.01,244.96,3.67038826]
[1758270005005,106.01,245.01,244.97,3.67038826]
[1758270005212,106.01,245.01,244.98,3.67038826]
[1758270005512,1.40892729,245.0,244.99,3.67122389]
[1758270005811,8.53892729,245.0,244.95,0.02693762]
[1758270006011,6.73,244.98,244.96,3.6712466]
[1758270006214,1.40892729,245.0,244.95,0.02693762]
[1758270006215,6.73,244.96,244.95,0.02693762]
[1758270006406,6.73,244.96,244.95,3.69840894]
[1758270008511,6.73,244.96,244.95,3.70149029]
[1758270010617,106.27,244.96,244.95,3.70149029]
[1758270011014,6.73,244.96,244.95,3.70149029]
[1758270011213,106.27,244.96,244.95,3.70149029]
[1758270013012,99.54,244.96,244.95,3.70149029]
[1758270013619,106.27,244.96,244.95,3.70149029]
[1758270023822,106.27,244.96,244.95,0.02693762]
[1758270032835,106.05,244.96,244.95,0.02693762]
[1758270038539,106.01,244.96,244.95,0.02693762]
[1758270039141,106.01,244.96,244.95,1.43586491]
[1758270039843,106.01,244.96,244.95,0.02693762]
[1758270041434,6.73,244.96,244.95,0.02693762]
[1758270041639,6.74,245.03,244.95,2.2273178]
[1758270041844,6.74,245.01,244.95,2.2273178]
[1758270042042,6.74,244.99,244.95,9.0773178]
[1758270042345,6.74,244.97,244.95,9.0773178]
[1758270042547,99.28,244.96,244.95,9.0773178]
[1758270043945,6.74,244.97,244.95,9.0773178]
[1758270044141,99.24,244.96,244.95,9.0773178]
[1758270044541,99.24,244.96,244.95,2.2273178]
[1758270045447,105.98,244.96,244.95,2.2273178]
[1758270045645,6.74,244.96,244.95,2.2273178]
[1758270045850,6.74,245.03,244.95,2.2273178]
[1758270046041,6.74,245.01,244.95,2.2273178]
[1758270046242,6.74,244.99,244.96,6.85]
[1758270046541,99.22,244.98,244.96,6.85]
[1758270046742,99.22,244.97,244.96,6.85]
[1758270048447,105.96,244.97,244.95,2.2273178]
[1758270048746,99.2,244.96,244.95,2.2273178]
[1758270048947,105.94,244.96,244.95,2.2273178]
[1758270049351,99.2,244.96,244.95,2.2273178]
[1758270049849,99.2,244.96,244.95,9.0773178]
[1758270050049,6.74,245.0,244.95,9.0773178]
[1758270050243,0.71057387,245.04,244.95,9.0773178]
[1758270050444,6.74,245.03,244.99,2.20038018]
[1758270050648,6.74,245.02,244.95,2.2273178]
[1758270054153,99.22,245.01,244.95,2.2273178]
[1758270054551,6.74,245.0,244.95,0.02693762]
[1758270055051,99.22,245.01,244.95,0.02693762]
[1758270055649,6.74,245.0,244.95,0.02693762]
[1758270055948,99.22,245.01,244.95,0.02693762]
[1758270056153,6.74,245.0,244.95,0.02693762]
[1758270059346,29.32,244.99,244.95,0.02693762]
[1758270059550,6.56,244.98,244.95,0.02693762]
[1758270059957,29.32,244.99,244.95,0.02693762]
[1758270060146,37.92,244.98,244.95,0.02693762]
[1758270060352,6.56,244.97,244.95,0.02693762]
[1758270060749,37.92,244.98,244.95,0.02693762]
[1758270060952,6.56,244.97,244.95,0.02693762]
[1758270062456,37.92,244.98,244.95,0.02693762]
[1758270063261,6.56,244.97,244.95,0.02693762]
[1758270063757,69.92,244.96,244.95,0.02693762]
[1758270067164,6.56,244.96,244.95,0.02693762]
[1758270067462,91.16,244.96,244.95,0.02693762]
[1758270073569,91.56,244.96,244.83,3.4327064]
[1758270073757,84.6,244.96,244.82,6.77]
[1758270073960,6.56,244.95,244.82,6.77]
[1758270074865,6.56,244.93,244.82,6.77]
[1758270075059,101.40038018,244.94,244.78,6.77]
[1758270075261,6.56,244.93,244.78,6.77]
[1758270076163,11.15553642,244.93,244.78,6.77]
[1758270076470,2.20038018,244.9,244.78,6.77]
[1758270076770,6.56,244.89,244.78,6.77]
[1758270077573,6.56,244.89,244.81,0.03038848]
[1758270080081,8.76038018,244.89,244.81,0.03038848]
[1758270080675,6.56,244.87,244.81,0.03038848]
[1758270082874,6.56,244.85,244.81,0.03038848]
[1758270083075,46.2,244.86,244.81,0.03038848]
[1758270083781,2.20038018,244.89,244.81,0.03038848]
[1758270083983,65.1,244.88,244.81,0.03038848]
[1758270084883,6.56,244.88,244.81,0.03038848]
[1758270085086,6.56,244.86,244.81,0.03038848]
[1758270085786,92.34,244.85,244.81,0.03038848]
[1758270086782,6.56,244.84,244.81,0.03038848]
[1758270086991,92.34,244.85,244.81,0.03038848]
[1758270087289,6.56,244.84,244.81,0.03038848]
[1758270087489,6.56,244.82,244.81,0.03038848]
[1758270087691,105.76,244.82,244.81,0.03038848]
[1758270088786,99.2,244.82,244.81,6.82038848]
[1758270089785,99.2,244.82,244.81,0.03038848]
[1758270090088,105.91,244.82,244.81,0.03038848]
[1758270090292,6.71,244.82,244.81,0.03038848]
[1758270090486,105.91,244.82,244.81,0.03038848]
[1758270094696,105.89,244.82,244.81,0.03038848]
[1758270095997,6.71,244.82,244.81,0.03038848]
[1758270096196,105.87,244.82,244.81,0.03038848]
[1758270116710,6.71,244.82,244.81,0.03038848]
[1758270117010,105.79,244.82,244.81,0.03038848]
[1758270121013,6.71,244.82,244.81,0.03038848]
[1758270121312,105.79,244.82,244.81,0.03038848]
[1758270121512,6.71,244.82,244.81,0.03038848]
[1758270121714,105.79,244.82,244.81,0.03038848]
[1758270131118,6.71,244.82,244.81,0.03038848]
[1758270131417,105.79,244.82,244.81,0.03038848]
[1758270134415,6.71,244.82,244.81,0.03038848]
[1758270134619,105.77,244.82,244.81,0.03038848]
[1758270138326,0.02854203,244.84,244.81,0.03038848]
[1758270138526,6.7,244.82,244.81,0.03038848]
[1758270139224,6.7,244.82,244.7,6.98]
[1758270139418,6.7,244.8,244.72,1.41005961]
[1758270139625,6.7,244.78,244.72,1.41005961]
[1758270139822,6.7,244.76,244.73,6.98]
[1758270140023,99.2,244.75,244.73,6.98]
[1758270140528,99.2,244.75,244.72,1.41005961]
[1758270140736,99.2,244.75,244.73,6.98]
[1758270140933,99.2,244.75,244.72,1.41005961]
[1758270141338,0.02733386,244.76,244.73,6.98]
[1758270141530,0.02733386,244.76,244.72,1.41005961]
[1758270141531,0.02733386,244.76,244.75,8.39005961]
[1758270141730,37.22733386,244.76,244.75,8.39005961]
[1758270144338,0.02733386,244.76,244.75,8.39005961]
[1758270144532,64.98733386,244.76,244.75,8.39005961]
[1758270144735,11.29553642,244.86,244.75,8.39005961]
[1758270145034,6.7,244.91,244.85,6.98]
[1758270145541,105.96,244.9,244.84,1.41005961]
[1758270146029,105.96,244.9,244.88,1.41005961]
[1758270146231,6.7,244.89,244.88,1.41005961]
[1758270147641,6.7,244.89,244.86,8.41596403]
[1758270148039,99.26,244.88,244.86,1.43596403]
[1758270148236,99.26,244.88,244.87,7.04]
[1758270149035,6.7,244.89,244.87,7.04]
[1758270149235,83.16,244.88,244.86,1.43596403]
[1758270149444,83.16,244.88,244.87,7.04]
[1758270154847,83.16,244.88,244.86,1.43596403]
[1758270155048,105.91,244.87,244.86,0.02590442]
[1758270155749,106.31,244.87,244.73,1.41005961]
[1758270155951,1.41005961,244.84,244.73,8.45005961]
[1758270156346,6.68,244.83,244.73,8.45005961]
[1758270156546,97.52,244.82,244.73,8.45005961]
[1758270157052,0.02824147,244.8,244.73,8.45005961]
[1758270157445,8.38,244.79,244.73,8.45005961]
[1758270157649,0.02824147,244.8,244.73,8.45005961]
[1758270158450,8.38,244.79,244.73,8.45005961]
[1758270158751,16.56,244.79,244.73,8.45005961]
[1758270159150,23.88,244.79,244.73,8.45005961]
[1758270162753,0.02824147,244.8,244.73,8.45005961]
[1758270162950,30.84824147,244.8,244.73,8.45005961]
[1758270163755,30.84824147,244.8,244.73,7.04]
[1758270164557,0.02824147,244.8,244.73,7.04]
[1758270164754,9.18824147,244.8,244.73,7.04]
[1758270165257,17.88824147,244.8,244.73,7.04]
[1758270168958,6.68,244.79,244.73,7.04]
[1758270201992,6.68,244.79,244.69,6.83]
[1758270223717,6.68,244.79,244.69,8.24068165]
[1758270224016,6.68,244.79,244.69,6.83]
[1758270224218,6.68,244.79,244.69,8.24068165]
[1758270230014,6.68,244.79,244.69,6.83]
[1758270230216,6.47,244.73,244.65,6.65]
[1758270230414,1.41068165,244.71,244.65,6.65]
[1758270230717,6.47,244.7,244.62,6.65]
[1758270230917,6.4957713,244.7,244.62,6.65]
[1758270231710,6.47,244.67,244.56,1.41068165]
[1758270232013,6.47,244.67,244.57,6.65]
[1758270232515,6.4965255,244.64,244.57,6.65]
[1758270238018,6.4965255,244.64,244.58,1.41068165]
[1758270241315,6.4965255,244.64,244.6,6.86]
[1758270241517,0.0265255,244.64,244.61,1.41068165]
[1758270242022,0.0265255,244.64,244.62,6.86]
[1758270242620,0.0265255,244.64,244.61,1.41068165]
[1758270243321,0.0265255,244.64,244.62,6.86]
[1758270243520,0.0265255,244.64,244.61,1.41068165]
[1758270243721,0.0265255,244.64,244.62,6.86]
[1758270243922,0.0265255,244.64,244.61,1.41068165]
[1758270244122,0.0265255,244.64,244.62,6.86]
[1758270244329,0.0265255,244.64,244.61,1.41068165]
[1758270244528,0.0265255,244.64,244.62,6.86]
[1758270244922,0.0265255,244.64,244.61,1.41068165]
[1758270245122,0.0265255,244.64,244.62,6.86]
[1758270245325,0.0265255,244.64,244.61,1.41068165]
[1758270245825,0.0265255,244.64,244.62,6.86]
[1758270253529,0.0265255,244.64,244.62,7.26]
[1758270258639,0.0265255,244.64,244.62,6.86]
[1758270258847,6.51,244.76,244.62,10.5372]
[1758270259043,6.51,244.76,244.69,8.27068165]
[1758270260646,12.2,244.77,244.69,8.27068165]
[1758270261240,6.51,244.76,244.69,8.27068165]
[1758270263751,7.22124191,244.8,244.73,6.86]
[1758270264244,7.22124191,244.8,244.77,6.86]
[1758270269746,7.22124191,244.8,244.76,1.41068165]
[1758270269959,0.71124191,244.8,244.76,1.41068165]
[1758270270545,0.71124191,244.8,244.77,6.8]
[1758270270746,0.71124191,244.8,244.76,1.41068165]
[1758270271746,0.71124191,244.8,244.77,6.8]
[1758270272245,6.72,244.79,244.77,6.8]
[1758270272447,6.72,244.79,244.75,6.8]
[1758270272846,6.72,244.79,244.74,1.41068165]
[1758270273054,6.72,244.79,244.75,6.8]
[1758270273245,6.72,244.79,244.74,1.41068165]
[1758270273447,6.72,244.79,244.75,6.8]
[1758270273742,6.72,244.79,244.74,1.41068165]
[1758270273941,6.72,244.79,244.75,6.8]
[1758270274351,6.72,244.79,244.65,3.6767]
[1758270274550,8.13068165,244.79,244.66,6.8]
[1758270274741,8.13068165,244.79,244.68,6.8]
[1758270277558,6.72,244.79,244.71,6.8]
[1758270278358,0.71124191,244.8,244.71,6.8]
[1758270279156,0.71124191,244.8,244.74,6.8]
[1758270282462,0.71124191,244.8,244.74,8.21068165]
[1758270285772,0.71124191,244.8,244.74,6.8]
[1758270286171,6.72,244.82,244.74,6.8]
[1758270294179,6.72,244.82,244.69,6.8]
[1758270300679,8.92295582,244.82,244.69,6.8]
[1758270300878,6.64,244.77,244.69,6.8]
[1758270301084,6.64,244.75,244.62,6.63]
[1758270303282,99.02,244.74,244.62,6.63]
[1758270303590,6.64,244.73,244.62,6.63]
[1758270304089,99.02,244.74,244.62,10.06502725]
[1758270304284,6.64,244.73,244.62,10.06502725]
[1758270305288,6.64,244.73,244.62,6.63]
[1758270311592,2.20295582,244.7,244.62,6.63]
[1758270312090,6.64,244.69,244.62,6.63]
[1758270343308,6.64,244.69,244.62,10.06928253]
[1758270346317,6.64,244.69,244.63,3.43928253]
[1758270348413,1.41167896,244.71,244.63,3.43928253]
[1758270348618,6.57,244.7,244.64,6.98]
[1758270352617,6.57,244.7,244.64,10.41928253]
[1758270353626,6.57,244.74,244.66,6.98]
[1758270353824,6.57,244.74,244.66,10.41928253]
[1758270354215,6.57,244.74,244.66,6.98]
[1758270354621,6.57,244.74,244.66,10.41928253]
[1758270355420,6.57,244.74,244.67,11.83096149]
[1758270355622,6.57,244.74,244.68,3.43928253]
[1758270355817,6.57,244.74,244.69,6.98]
[1758270356325,6.57,244.74,244.68,3.43928253]
[1758270357527,6.72,244.78,244.69,6.9]
[1758270358426,1.41167896,244.72,244.67,3.43928253]
[1758270358627,1.41167896,244.72,244.66,3.43928253]
[1758270358822,6.71,244.71,244.66,3.43928253]
[1758270359028,6.71,244.71,244.65,3.43928253]
[1758270359622,6.71,244.71,244.64,10.58928253]
[1758270359828,1.41167896,244.72,244.64,10.58928253]
[1758270360033,6.71,244.71,244.64,7.15]
[1758270361026,1.41167896,244.69,244.63,3.43928253]
[1758270361222,1.41167896,244.69,244.61,7.15]
[1758270361223,6.71,244.68,244.62,3.43928253]
[1758270361424,1.41167896,244.66,244.6,3.43928253]
[1758270361624,6.71,244.65,244.59,3.43928253]
[1758270361830,6.71,244.65,244.58,3.43928253]
[1758270362037,18.14,244.7,244.57,10.58928253]
[1758270362038,1.41167896,244.63,244.57,10.58928253]
[1758270362331,8.12167896,244.63,244.57,10.58928253]
[1758270362730,6.71,244.62,244.58,3.43928253]
[1758270363328,1.41167896,244.63,244.58,3.43928253]
[1758270363729,6.71,244.62,244.58,3.43928253]
[1758270363929,1.41167896,244.63,244.58,3.43928253]
[1758270364131,6.71,244.62,244.57,10.58928253]
[1758270364329,6.71,244.62,244.57,7.15]
[1758270364633,1.41167896,244.63,244.57,7.15]
[1758270364929,6.71,244.62,244.56,3.43928253]
[1758270365434,6.71,244.62,244.55,3.43928253]
[1758270367332,6.71,244.62,244.54,10.58928253]
[1758270368539,6.71,244.62,244.54,7.15]
[1758270378341,6.71,244.62,244.54,8.56167896]
[1758270379146,1.41167896,244.63,244.54,8.56167896]
[1758270379347,6.71,244.62,244.54,8.56167896]
[1758270385959,6.71,244.62,244.54,7.15]
[1758270386160,6.71,244.62,244.54,8.56167896]
[1758270387158,6.71,244.62,244.54,7.15]
[1758270387353,6.71,244.62,244.54,8.56167896]
[1758270391265,6.71,244.62,244.54,7.15]
[1758270391565,6.71,244.62,244.56,6.76]
[1758270393963,6.72,244.65,244.59,6.76]
[1758270396866,99.04,244.64,244.59,6.76]
[1758270397067,6.72,244.63,244.59,6.76]
[1758270397268,6.72,244.63,244.55,6.76]
[1758270397571,6.72,244.63,244.56,1.41167896]
[1758270397772,6.72,244.63,244.57,6.76]
[1758270404373,6.72,244.63,244.57,10.20261229]
[1758270407775,99.04,244.64,244.57,10.20261229]
[1758270408274,6.72,244.63,244.57,6.76]
[1758270412482,6.72,244.63,244.55,3.44261229]
[1758270418387,99.04,244.64,244.54,10.20261229]
[1758270418987,6.73,244.63,244.54,10.20261229]
[1758270419288,6.73,244.63,244.54,3.44261229]
[1758270419488,6.73,244.63,244.55,7.11]
[1758270420187,99.02,244.62,244.55,7.11]
[1758270422183,6.73,244.63,244.55,7.11]
[1758270422390,99.02,244.61,244.55,7.11]
[1758270422884,99.02,244.61,244.56,7.11]
[1758270424490,99.02,244.61,244.55,3.44261229]
[1758270424681,99.02,244.61,244.56,7.11]
[1758270424884,99.02,244.61,244.55,3.44261229]
[1758270425091,99.02,244.61,244.56,7.11]
[1758270425288,99.02,244.61,244.55,3.44261229]
[1758270425590,99.02,244.61,244.56,7.11]
[1758270425990,99.02,244.61,244.55,3.44261229]
[1758270426387,99.02,244.61,244.56,7.11]
[1758270426788,99.02,244.61,244.55,3.44261229]
[1758270427092,99.02,244.61,244.56,3.44261229]
[1758270427279,105.75,244.61,244.57,7.11]
[1758270427487,105.75,244.61,244.56,3.44261229]
[1758270428586,105.75,244.61,244.57,7.11]
[1758270428982,105.75,244.61,244.56,3.44261229]
[1758270429186,105.75,244.61,244.56,3.44581004]
[1758270429692,105.75,244.61,244.57,7.11]
[1758270429889,6.73,244.61,244.57,7.11]
[1758270430085,105.75,244.61,244.56,3.44581004]
[1758270430290,105.75,244.61,244.57,7.11]
[1758270431090,6.73,244.61,244.56,3.44581004]
[1758270431583,6.73,244.61,244.57,7.11]
[1758270431789,6.73,244.61,244.56,3.44581004]
[1758270432492,6.73,244.61,244.57,7.11]
[1758270432693,6.73,244.61,244.56,3.44581004]
[1758270432889,99.0,244.62,244.56,10.55581004]
[1758270433093,105.73,244.62,244.56,10.55581004]
[1758270433695,105.73,244.62,244.57,3.44581004]
[1758270433894,6.73,244.61,244.58,7.11]
[1758270435099,6.73,244.7,244.58,7.11]
[1758270435299,6.73,244.7,244.58,10.55581004]
[1758270435503,6.73,244.68,244.59,3.44581004]
[1758270436198,6.73,244.66,244.59,3.44581004]
[1758270436495,99.0,244.65,244.59,3.44581004]
[1758270436799,99.0,244.64,244.59,3.44581004]
[1758270436994,6.73,244.63,244.59,3.44581004]
[1758270437194,99.0,244.64,244.59,3.44581004]
[1758270437498,6.73,244.63,244.58,10.55581004]
[1758270437697,99.0,244.64,244.58,10.55581004]
[1758270437895,6.73,244.63,244.58,10.55581004]
[1758270438192,99.0,244.64,244.58,10.55581004]
[1758270438599,14.51916534,244.71,244.58,10.55581004]
[1758270439000,99.0,244.7,244.58,10.55581004]
[1758270439199,14.51916534,244.71,244.58,10.55581004]
[1758270439390,6.73,244.69,244.58,10.55581004]
[1758270439697,99.0,244.7,244.58,10.55581004]
[1758270440001,14.51916534,244.71,244.58,10.55581004]
[1758270440195,99.0,244.7,244.58,10.55581004]
[1758270440401,6.73,244.69,244.58,10.55581004]
[1758270440600,12.31208851,244.71,244.58,10.55581004]
[1758270440797,309.16,244.72,244.58,10.55581004]
[1758270440998,99.0,244.71,244.58,10.55581004]
[1758270441291,309.16,244.72,244.58,10.55581004]
[1758270441599,99.0,244.71,244.58,10.55581004]
[1758270441799,6.73,244.7,244.58,10.55581004]
[1758270441993,99.0,244.71,244.58,10.55581004]
[1758270442399,6.73,244.7,244.58,10.55581004]
[1758270442697,309.16,244.72,244.58,10.55581004]
[1758270442901,6.73,244.71,244.58,10.55581004]
[1758270443097,98.98,244.7,244.58,10.55581004]
[1758270443300,6.73,244.69,244.58,10.55581004]
[1758270443600,98.98,244.7,244.58,10.55581004]
[1758270444200,6.73,244.69,244.58,3.44581004]
[1758270444400,6.73,244.69,244.59,7.11]
[1758270444600,98.98,244.68,244.59,7.11]
[1758270444801,6.73,244.67,244.59,7.11]
[1758270445002,6.73,244.7,244.59,7.11]
[1758270445202,98.98,244.69,244.59,7.11]
[1758270445402,6.73,244.68,244.59,7.11]
[1758270445598,98.98,244.67,244.59,7.11]
[1758270445802,105.71,244.66,244.59,7.11]
[1758270446104,6.73,244.66,244.59,7.11]
[1758270446307,98.98,244.65,244.59,7.11]
[1758270447204,98.98,244.64,244.59,7.11]
[1758270447803,6.73,244.65,244.59,7.11]
[1758270448194,98.98,244.64,244.58,3.44581004]
[1758270448396,98.98,244.64,244.59,6.65]
[1758270448595,98.98,244.64,244.58,3.44581004]
[1758270448800,98.98,244.64,244.59,6.65]
[1758270449204,98.98,244.63,244.59,6.65]
[1758270449401,105.69,244.63,244.59,6.65]
[1758270449605,105.69,244.63,244.58,3.44581004]
[1758270449801,105.69,244.63,244.59,6.65]
[1758270450001,105.69,244.63,244.58,3.44581004]
[1758270450801,105.69,244.63,244.59,6.65]
[1758270451001,105.69,244.63,244.58,3.44581004]
[1758270451606,6.71,244.62,244.58,3.44581004]
[1758270451908,6.71,244.62,244.59,6.65]
[1758270452301,6.71,244.62,244.58,3.44581004]
[1758270452501,6.71,244.62,244.59,6.65]
[1758270452697,6.71,244.62,244.58,3.44581004]
[1758270453102,6.71,244.62,244.59,6.65]
[1758270453304,32.82,244.63,244.59,6.65]
[1758270453508,6.71,244.63,244.59,6.65]
[1758270453708,6.71,244.63,244.58,3.44581004]
[1758270453907,15.56,244.64,244.59,6.65]
[1758270454108,15.56,244.64,244.58,3.44581004]
[1758270454310,33.21,244.64,244.58,10.09581004]
[1758270455210,6.71,244.64,244.58,10.09581004]
[1758270455413,54.33,244.64,244.58,10.09581004]
[1758270456412,6.71,244.64,244.58,10.09581004]
[1758270458616,6.71,244.64,244.58,6.65]
[1758270458918,6.71,244.64,244.58,10.09581004]
[1758270459312,6.71,244.64,244.58,6.65]
[1758270459615,6.71,244.64,244.58,10.09581004]
[1758270460313,6.71,244.64,244.58,6.65]
[1758270461517,6.71,244.64,244.54,3.44581004]
[1758270466223,6.71,244.64,244.53,10.09581004]
[1758270466423,24.60707683,244.65,244.53,10.09581004]
[1758270466619,2.20707683,244.61,244.53,10.09581004]
[1758270467616,6.71,244.6,244.53,10.09581004]
[1758270467924,6.71,244.6,244.51,3.44581004]
[1758270468318,6.71,244.6,244.5,3.44581004]
[1758270468518,6.71,244.6,244.49,3.44581004]
[1758270469821,6.71,244.54,244.49,3.44581004]
[1758270470124,1.41345405,244.55,244.49,3.44581004]
[1758270470320,6.71,244.54,244.48,10.09581004]
[1758270471026,6.71,244.54,244.48,3.44581004]
[1758270471326,6.71,244.54,244.49,6.65]
[1758270471517,6.71,244.54,244.48,3.44581004]
[1758270472020,8.12345405,244.55,244.49,6.65]
[1758270473329,6.71,244.55,244.49,6.65]
[1758270482733,6.73,244.6,244.53,1.41345405]
[1758270483033,6.73,244.6,244.54,6.76]
[1758270486645,7.44180928,244.6,244.54,6.76]
[1758270488947,0.71180928,244.6,244.5,6.76]
[1758270489149,6.73,244.59,244.51,6.76]
[1758270489343,0.71180928,244.6,244.51,4.85926409]
[1758270489548,0.71180928,244.6,244.52,6.76]
[1758270491143,0.71180928,244.6,244.53,1.41345405]
[1758270491343,0.71180928,244.6,244.54,6.76]
[1758270492653,0.71180928,244.6,244.57,6.76]
[1758270492852,6.73,244.66,244.57,6.76]
[1758270493150,0.71172194,244.65,244.57,6.76]
[1758270494655,0.71172194,244.65,244.59,6.76]
[1758270497659,0.71172194,244.65,244.61,1.41345405]
[1758270497955,0.71172194,244.65,244.62,6.76]
[1758270498252,0.71172194,244.65,244.61,1.41345405]
[1758270498552,0.71172194,244.65,244.62,6.76]
[1758270498758,6.73,244.69,244.62,6.76]
[1758270498954,98.96,244.7,244.64,1.41345405]
[1758270499155,7.44157641,244.69,244.64,1.41345405]
[1758270499558,7.44157641,244.69,244.65,6.76]
[1758270499759,7.44157641,244.69,244.64,1.41345405]
[1758270500559,6.73,244.68,244.64,1.41345405]
[1758270500756,7.44157641,244.69,244.64,1.41345405]
[1758270500956,6.73,244.68,244.65,6.76]
[1758270502155,6.73,244.68,244.64,1.41345405]
[1758270502461,6.73,244.68,244.65,6.76]
[1758270504462,6.73,244.68,244.64,1.41345405]
[1758270504663,6.73,244.68,244.65,6.76]
[1758270504856,98.94,244.68,244.61,8.17345405]
[1758270505062,6.73,244.67,244.61,8.17345405]
[1758270507162,8.14345405,244.67,244.58,6.76]
[1758270509465,6.73,244.67,244.58,6.76]
[1758270511462,98.94,244.66,244.58,6.76]
[1758270512566,98.94,244.66,244.6,1.41345405]
[1758270512768,98.94,244.65,244.6,1.41345405]
[1758270513169,105.65,244.65,244.61,6.93]
[1758270513469,105.65,244.65,244.6,1.41345405]
[1758270513862,105.65,244.65,244.61,6.93]
[1758270514462,6.71,244.64,244.61,6.93]
[1758270515564,6.71,244.64,244.6,1.41345405]
[1758270515759,6.71,244.64,244.61,6.93]
[1758270516670,6.71,244.64,244.56,6.93]
[1758270516871,6.71,244.64,244.58,1.41345405]
[1758270517172,98.94,244.65,244.58,1.41345405]
[1758270517373,105.65,244.65,244.59,6.93]
[1758270519467,100.35345405,244.65,244.55,10.36188977]
[1758270519771,6.71,244.64,244.55,6.93]
[1758270520466,6.71,244.64,244.57,1.41345405]
[1758270520677,20.25,244.64,244.61,6.93]
[1758270521973,6.71,244.64,244.61,6.93]
[1758270522474,6.71,244.64,244.56,11.77534382]
[1758270523662,6.71,244.64,244.56,8.34345405]
[1758270523866,8.12345405,244.64,244.56,8.34345405]
[1758270524675,8.12345405,244.64,244.56,6.93]
[1758270525275,6.71,244.64,244.56,6.93]
[1758270529776,21.45,244.64,244.56,3.43188977]
[1758270530075,21.45,244.64,244.57,6.93]
[1758270534680,21.45,244.64,244.56,3.43188977]
[1758270534879,21.45,244.64,244.55,3.43188977]
[1758270535475,6.71,244.63,244.54,10.36188977]
[1758270536275,14.74,244.64,244.54,10.36188977]
[1758270536676,6.74,244.63,244.54,10.36188977]
[1758270536881,14.74,244.64,244.54,10.36188977]
[1758270537180,6.74,244.63,244.54,10.36188977]
[1758270537780,6.74,244.63,244.54,6.93]
[1758270538974,6.73,244.61,244.52,3.43188977]
[1758270539178,2.20645219,244.62,244.49,9.94188977]
[1758270540183,6.73,244.61,244.49,9.94188977]
[1758270540384,6.73,244.61,244.49,6.51]
[1758270541588,2.20645219,244.58,244.49,6.51]
[1758270541784,6.73,244.57,244.49,6.51]
[1758270552283,6.73,244.57,244.45,3.43188977]
[1758270552488,6.73,244.57,244.44,6.51]
[1758270553489,6.73,244.55,244.44,6.51]
[1758270553690,9.78,244.54,244.44,6.51]
[1758270557584,6.73,244.59,244.44,6.51]
[1758270557793,14.28246186,244.58,244.47,6.51]
[1758270557990,1.02246186,244.57,244.47,6.51]
[1758270558485,6.73,244.62,244.51,6.51]
[1758270558685,1.02229795,244.61,244.51,6.51]
[1758270569098,6.73,244.6,244.51,6.51]
[1758270572211,1.02228459,244.59,244.51,6.51]
[1758270575009,12.66,244.63,244.51,6.51]
[1758270575210,1.0222845,244.62,244.51,6.51]
[1758270575911,1.0222845,244.62,244.51,9.94351383]
[1758270576110,1.0222845,244.62,244.52,6.79]